bitfinex/quotes_SOLUSD_20241223
["timestamp","ask_amount","ask_price","bid_price","bid_amount"]
[1734995944966,16.38023935,191.73,191.67,152.88023935]
[1734995945160,16.38023935,191.74,191.67,136.5]
[1734995945341,16.38023935,191.72,191.65,158.88783935]
[1734995948973,16.38023935,191.72,191.65,22.38783935]
[1734995950477,16.38023935,191.74,191.67,16.38023935]
[1734995950775,16.38023935,191.78,191.7,16.38023935]
[1734995951071,16.38023935,191.81,191.73,16.38023935]
[1734995951272,16.38023935,191.81,191.73,16.73623685]
[1734995951479,16.38023935,191.81,191.74,16.38023935]
[1734995951775,16.38023935,191.81,191.74,152.88023935]
[1734995952081,16.38023935,191.83,191.75,16.73623083]
[1734995952277,16.38023935,191.82,191.75,0.35599148]
[1734995952451,16.38023935,191.81,191.74,152.88023935]
[1734995952648,16.38023935,191.81,191.74,136.5]
[1734995953582,16.38023935,191.8,191.74,136.5]
[1734995956681,16.38023935,191.81,191.74,152.88023935]
[1734995956866,16.38023935,191.82,191.74,152.88023935]
[1734995957184,20.0,191.79,191.74,152.88023935]
[1734995957684,16.38023935,191.81,191.74,152.88023935]
[1734995958269,16.38023935,191.82,191.75,16.38023935]
[1734995958579,16.38023935,191.82,191.75,16.73618812]
[1734995959385,16.38023935,191.85,191.77,16.38023935]
[1734995959553,16.38023935,191.85,191.78,0.35552649]
[1734995959951,16.38023935,191.85,191.78,16.73576584]
[1734995960154,16.38023935,191.85,191.78,0.35552649]
[1734995960373,0.97727824,191.89,191.79,16.38023935]
[1734995960584,16.38023935,191.87,191.8,152.88023935]
[1734995961379,16.38023935,191.86,191.8,136.5]
[1734995961686,0.97722334,191.92,191.8,136.5]
[1734995961687,16.38023935,191.87,191.8,136.5]
[1734995961899,16.38023935,191.87,191.8,152.88023935]
[1734995962183,16.38023935,191.9,191.83,152.88023935]
[1734995962360,16.38023935,191.91,191.84,16.73508391]
[1734995963178,16.38023935,191.91,191.84,153.23508391]
[1734995963384,16.38023935,191.91,191.84,152.88023935]
[1734995965287,16.38023935,191.9,191.84,136.5]
[1734995965458,16.38023935,191.89,191.84,136.5]
[1734995965980,16.38023935,191.88,191.82,136.5]
[1734995966373,16.38023935,191.9,191.82,152.88023935]
[1734995966685,16.38023935,191.9,191.83,16.38023935]
[1734995967386,16.38023935,191.91,191.84,16.38023935]
[1734995967591,16.38023935,191.9,191.83,152.88023935]
[1734995967765,16.38023935,191.89,191.83,136.5]
[1734995968293,16.38023935,191.9,191.83,136.5]
[1734995972202,10.45211622,191.9,191.83,136.5]
[1734995974393,10.45211622,191.88,191.81,153.58481622]
[1734995975696,10.45211622,191.88,191.81,143.1327]
[1734995975997,10.45211622,191.88,191.81,153.58481622]
[1734995976185,0.97713954,191.94,191.82,171.08410297]
[1734995976497,10.45211622,191.9,191.82,170.72900022]
[1734995976699,10.45211622,191.9,191.83,0.35492516]
[1734995982105,0.97700681,191.97,191.84,34.22900022]
[1734995982405,10.45211622,191.92,191.85,147.30684462]
[1734995982590,10.45211622,191.92,191.86,0.35463515]
[1734995984912,10.45211622,191.92,191.86,1.99343515]
[1734995985208,0.97700681,191.97,191.86,148.94555137]
[1734995985386,10.45211622,191.93,191.86,148.59091622]
[1734995985587,10.45211622,191.93,191.87,0.35465003]
[1734995985908,10.45211622,191.92,191.87,0.35465003]
[1734995986108,10.45211622,191.91,191.86,138.1388]
[1734995987036,25.2095,191.96,191.86,148.59091622]
[1734995987314,10.45211622,191.92,191.86,138.1388]
[1734995990690,10.45211622,191.9,191.86,1.6388]
[1734995991609,10.45211622,191.89,191.83,136.5]
[1734995992018,10.45211622,191.89,191.81,18.60741622]
[1734995992019,10.45211622,191.87,191.81,144.6553]
[1734995992392,10.45211622,191.87,191.81,8.1553]
[1734995995514,10.45211622,191.85,191.81,8.1553]
[1734995995718,10.45211622,191.84,191.81,1.5226]
[1734995995919,10.45211622,191.83,191.81,1.5226]
[1734995996218,10.45211622,191.83,191.77,142.5588]
[1734995997295,10.45211622,191.84,191.77,142.5588]
[1734995998020,10.45211622,191.84,191.77,153.01091622]
[1734995999308,10.45211622,191.84,191.77,142.5588]
[1734996000017,10.45211622,191.82,191.77,6.0588]
[1734996000218,5.2113,191.89,191.76,1.5226]
[1734996000219,10.45211622,191.81,191.76,1.5226]
[1734996000921,10.45211622,191.82,191.76,1.5226]
[1734996001318,10.45211622,191.81,191.76,1.5226]
[1734996001704,10.45211622,191.8,191.73,146.95211622]
[1734996002007,10.45211622,191.8,191.73,136.5]
[1734996002921,10.45211622,191.8,191.73,146.95211622]
[1734996003122,10.45211622,191.81,191.74,10.45211622]
[1734996003995,20.0,191.82,191.75,10.45211622]
[1734996004818,30.45211622,191.82,191.75,10.45211622]
[1734996005018,10.45211622,191.81,191.74,10.45211622]
[1734996005320,10.45211622,191.79,191.72,144.0814]
[1734996005502,10.45211622,191.79,191.72,154.53351622]
[1734996005924,10.45211622,191.79,191.72,144.0814]
[1734996006311,10.45211622,191.78,191.72,144.0814]
[1734996006510,10.45211622,191.79,191.72,144.0814]
[1734996007112,10.45211622,191.79,191.72,154.53351622]
[1734996008026,10.45211622,191.79,191.72,144.0814]
[1734996008527,10.45211622,191.79,191.72,138.0226]
[1734996009207,10.45211622,191.79,191.72,1.5226]
[1734996009543,10.45211622,191.79,191.72,11.97471622]
[1734996010227,10.45211622,191.79,191.72,1.5226]
[1734996010436,11.4298689,191.78,191.71,10.45211622]
[1734996010805,10.45211622,191.75,191.68,142.8736]
[1734996011006,10.45211622,191.75,191.68,153.32571622]
[1734996011355,10.45211622,191.73,191.67,1.5785]
[1734996011843,0.97802772,191.72,191.66,136.5]
[1734996012056,10.45211622,191.7,191.63,144.4521]
[1734996012248,10.45211622,191.7,191.63,154.90421622]
[1734996012451,11.43028754,191.69,191.63,1.5785]
[1734996012612,11.43028754,191.69,191.61,10.45211622]
[1734996012613,10.45211622,191.68,191.61,10.45211622]
[1734996012814,10.45211622,191.64,191.57,10.45211622]
[1734996013113,7.38757543,191.71,191.62,10.45211622]
[1734996013332,0.97851199,191.71,191.65,10.45211622]
[1734996013532,30.45211622,191.73,191.66,10.45211622]
[1734996014352,20.0,191.73,191.66,10.45211622]
[1734996014568,20.0,191.74,191.68,10.45211622]
[1734996014753,20.0,191.74,191.69,10.45211622]
[1734996015079,10.45211622,191.78,191.71,10.45211622]
[1734996015234,10.45211622,191.76,191.69,136.5]
[1734996015435,10.45211622,191.74,191.67,148.53061622]
[1734996015855,10.45211622,191.75,191.67,12.03061622]
[1734996016156,20.0,191.78,191.7,10.45211622]
[1734996016360,10.45211622,191.77,191.7,10.45211622]
[1734996016548,10.45211622,191.76,191.69,10.45211622]
[1734996017147,1.6299,191.8,191.69,10.45211622]
[1734996017326,10.45211622,191.77,191.7,10.45211622]
[1734996017521,10.45211622,191.78,191.7,10.45211622]
[1734996017771,10.45211622,191.79,191.71,146.95211622]
[1734996018273,10.45211622,191.78,191.71,146.95211622]
[1734996018757,20.0,191.79,191.73,10.45211622]
[1734996018933,7.28621939,191.84,191.71,136.5]
[1734996018934,10.45211622,191.81,191.74,10.80823682]
[1734996019254,10.45211622,191.83,191.76,10.45211622]
[1734996019855,10.45211622,191.82,191.75,10.45211622]
[1734996020054,10.45211622,191.82,191.74,146.95211622]
[1734996020550,1.6299,191.84,191.74,146.95211622]
[1734996020755,10.45211622,191.82,191.74,146.95211622]
[1734996021563,10.45211622,191.83,191.75,34.22900022]
[1734996021741,6.45211622,191.83,191.75,23.776884]
[1734996021942,6.45211622,191.83,191.75,34.22900022]
[1734996022345,6.45211622,191.83,191.75,34.58485805]
[1734996024378,7.42961952,191.83,191.75,10.45211622]
[1734996024864,6.45211622,191.83,191.75,10.45211622]
[1734996025064,6.45211622,191.83,191.75,10.80805297]
[1734996025581,6.45211622,191.83,191.77,10.45211622]
[1734996025878,20.0,191.84,191.77,10.80775512]
[1734996026661,10.45211622,191.84,191.77,0.3556389]
[1734996026852,10.45211622,191.82,191.75,18.50861622]
[1734996027040,11.42964759,191.81,191.74,136.5]
[1734996027238,11.42964759,191.81,191.73,10.45211622]
[1734996028159,10.45211622,191.79,191.71,149.5405]
[1734996028341,10.45211622,191.79,191.71,159.99261622]
[1734996030067,0.97769657,191.78,191.71,146.95211622]
[1734996030257,10.45211622,191.77,191.71,136.5]
[1734996031476,10.45211622,191.79,191.71,146.95211622]
[1734996032162,10.45211622,191.81,191.73,10.45211622]
[1734996032342,10.45211622,191.82,191.74,10.80811672]
[1734996032541,10.45211622,191.83,191.75,10.45211622]
[1734996035262,10.45211622,191.83,191.75,146.95211622]
[1734996035465,10.45211622,191.81,191.75,136.5]
[1734996036669,10.45211622,191.79,191.72,149.5398]
[1734996036973,10.45211622,191.81,191.73,10.45211622]
[1734996037153,10.45211622,191.83,191.75,10.45211622]
[1734996037352,10.45211622,191.83,191.75,10.80791563]
[1734996038874,10.45211622,191.83,191.76,10.45211622]
[1734996039677,10.45211622,191.83,191.75,10.80791563]
[1734996039866,11.42962778,191.83,191.75,10.45211622]
[1734996040167,10.45211622,191.8,191.73,147.30799636]
[1734996040367,10.45211622,191.8,191.73,146.95211622]
[1734996041375,10.45211622,191.8,191.74,23.776884]
[1734996041575,10.45211622,191.8,191.73,146.95211622]
[1734996041781,0.97767705,191.79,191.73,136.5]
[1734996041965,10.45211622,191.78,191.73,136.5]
[1734996042162,10.45211622,191.76,191.7,144.5565]
[1734996042371,10.45211622,191.78,191.7,155.00861622]
[1734996042882,10.45211622,191.8,191.72,146.95211622]
[1734996043181,0.97775111,191.83,191.72,146.95211622]
[1734996043182,10.45211622,191.83,191.74,10.45211622]
[1734996043380,10.45211622,191.83,191.75,0.35582512]
[1734996044482,10.45211622,191.83,191.75,136.85582512]
[1734996044685,10.45211622,191.83,191.76,170.72900022]
[1734996045582,1.548,191.88,191.79,23.776884]
[1734996045770,10.45211622,191.87,191.79,23.776884]
[1734996045969,10.45211622,191.87,191.8,0.35530403]
[1734996046585,10.45211622,191.86,191.79,160.276884]
[1734996047291,10.45211622,191.86,191.79,170.72900022]
[1734996047669,10.45211622,191.87,191.8,10.45211622]
[1734996047868,10.45211622,191.87,191.79,170.72900022]
[1734996048083,10.45211622,191.87,191.8,0.35532025]
[1734996048458,10.45211622,191.89,191.81,34.22900022]
[1734996048760,10.45211622,191.89,191.82,0.35513189]
[1734996049887,10.45211622,191.89,191.82,10.80724811]
[1734996050101,10.45211622,191.9,191.83,10.45211622]
[1734996050878,10.45211622,191.9,191.83,146.95211622]
[1734996052564,10.45211622,191.9,191.83,136.5]
[1734996052784,11.42924977,191.89,191.83,136.5]
[1734996053284,10.45211622,191.89,191.83,136.5]
[1734996053463,10.45211622,191.88,191.81,146.95211622]
[1734996054689,11.42932776,191.87,191.81,136.5]
[1734996054868,10.45211622,191.86,191.79,146.95211622]
[1734996055380,0.97736495,191.9,191.79,146.95211622]
[1734996055700,10.45211622,191.85,191.79,136.5]
[1734996055865,10.45211622,191.84,191.79,136.5]
[1734996056567,10.45211622,191.84,191.76,10.45211622]
[1734996056772,10.45211622,191.83,191.74,138.36447471]
[1734996056968,10.45211622,191.83,191.76,10.45211622]
[1734996057170,10.45211622,191.83,191.76,136.5]
[1734996058183,10.45211622,191.82,191.75,146.95211622]
[1734996058370,10.45211622,191.81,191.74,1.5086]
[1734996058573,10.45211622,191.81,191.72,6.58148569]
[1734996058779,10.45211622,191.79,191.72,6.58148569]
[1734996059284,10.45211622,191.79,191.72,17.03360191]
[1734996061493,10.45211622,191.77,191.72,6.58148569]
[1734996062006,0.97778104,191.8,191.72,17.03360191]
[1734996062290,10.45211622,191.79,191.72,6.58148569]
[1734996062501,10.45211622,191.78,191.72,6.58148569]
[1734996062686,10.45211622,191.74,191.72,6.58148569]
[1734996062867,11.43010503,191.73,191.72,6.58148569]
[1734996063072,11.43010503,191.73,191.65,10.45211622]
[1734996063282,10.45211622,191.72,191.65,10.45211622]
[1734996064225,16.3607136,191.72,191.65,40.1375976]
[1734996066215,16.3607136,191.72,191.65,176.6375976]
[1734996067293,16.3607136,191.73,191.65,176.6375976]
[1734996068401,16.3607136,191.71,191.63,16.3607136]
[1734996068918,16.3607136,191.71,191.64,16.3607136]
[1734996069998,16.3607136,191.72,191.64,16.3607136]
[1734996070394,16.3607136,191.71,191.64,16.3607136]
[1734996071538,16.3607136,191.73,191.66,16.3607136]
[1734996073423,16.3607136,191.72,191.65,176.6375976]
[1734996073623,17.33877593,191.71,191.65,136.5]
[1734996073921,16.3607136,191.73,191.65,16.3607136]
[1734996074126,16.3607136,191.72,191.65,16.3607136]
[1734996074426,16.3607136,191.71,191.64,152.8607136]
[1734996074625,16.3607136,191.69,191.64,136.5]
[1734996074817,16.3607136,191.69,191.62,136.5]
[1734996075609,16.3607136,191.69,191.62,152.8607136]
[1734996076030,16.3607136,191.7,191.63,16.3607136]
[1734996079828,16.3607136,191.7,191.62,136.5]
[1734996080127,16.3607136,191.7,191.63,16.3607136]
[1734996081133,0.97821051,191.69,191.61,16.3607136]
[1734996081319,16.3607136,191.68,191.61,16.3607136]
[1734996081516,0.97835827,191.67,191.6,136.5]
[1734996081920,17.33909861,191.68,191.6,136.5]
[1734996082832,1.5269,191.69,191.61,40.1375976]
[1734996083046,20.0,191.67,191.61,40.49485322]
[1734996084427,10.47391012,191.7,191.63,10.47391012]
[1734996084656,1.5269,191.74,191.65,34.25079412]
[1734996084815,20.0,191.73,191.67,10.47391012]
[1734996085023,1.5269,191.74,191.67,10.47391012]
[1734996085418,12.00081012,191.74,191.67,10.47391012]
[1734996085738,1.5269,191.74,191.67,10.47391012]
[1734996086033,10.47391012,191.73,191.65,170.75079412]
[1734996086205,10.47391012,191.72,191.65,170.75079412]
[1734996086541,10.47391012,191.73,191.65,170.75079412]
[1734996088433,11.45193122,191.73,191.65,170.75079412]
[1734996088740,10.47391012,191.72,191.65,160.276884]
[1734996089342,10.47391012,191.72,191.65,170.75079412]
[1734996089642,10.47391012,191.71,191.65,160.276884]
[1734996090042,10.47391012,191.73,191.66,10.47391012]
[1734996091541,0.977941,191.75,191.65,170.75079412]
[1734996091542,10.47391012,191.72,191.65,170.75079412]
[1734996092442,10.47391012,191.71,191.65,136.5]
[1734996092739,11.2881,191.76,191.62,7.5918]
[1734996092740,10.47391012,191.67,191.62,7.5918]
[1734996093034,10.47391012,191.72,191.64,146.97391012]
[1734996093422,10.47391012,191.71,191.64,146.97391012]
[1734996094036,10.47391012,191.71,191.65,23.776884]
[1734996096342,10.47391012,191.71,191.65,136.5]
[1734996096537,10.47391012,191.67,191.62,1.5611]
[1734996096734,10.47391012,191.66,191.59,136.5]
[1734996096920,10.47391012,191.65,191.59,136.5]
[1734996097336,10.47391012,191.64,191.58,1.5667]
[1734996097524,10.47391012,191.63,191.54,4.61489546]
[1734996097826,0.97861461,191.69,191.6,10.47391012]
[1734996098028,10.47391012,191.68,191.6,10.47391012]
[1734996098543,2.64113568,191.7,191.61,10.47391012]
[1734996098752,10.47391012,191.69,191.61,10.47391012]
[1734996100230,10.47391012,191.67,191.59,10.47391012]
[1734996100545,10.47391012,191.67,191.6,23.776884]
[1734996100723,10.47391012,191.65,191.57,10.47391012]
[1734996101442,10.47391012,191.64,191.56,10.47391012]
[1734996101643,10.47391012,191.64,191.57,20.0]
[1734996101952,10.47391012,191.64,191.56,146.97391012]
[1734996103153,6.19533428,191.69,191.59,10.47391012]
[1734996103154,10.47391012,191.65,191.59,10.47391012]
[1734996103748,10.47391012,191.66,191.58,34.25079412]
[1734996104255,10.47391012,191.66,191.59,10.47391012]
[1734996104440,10.47391012,191.67,191.59,10.47391012]
[1734996104755,10.47391012,191.66,191.59,10.47391012]
[1734996105054,10.47391012,191.66,191.58,34.60839685]
[1734996105350,10.47391012,191.64,191.57,136.5]
[1734996105751,11.45238015,191.63,191.57,136.5]
[1734996106049,10.47391012,191.62,191.57,136.5]
[1734996106258,20.0,191.64,191.57,136.5]
[1734996106427,30.47391012,191.64,191.57,136.5]
[1734996107647,10.47391012,191.62,191.54,15.08880558]
[1734996109643,10.47391012,191.62,191.54,15.44692543]
[1734996110033,10.47391012,191.62,191.54,15.08880558]
[1734996110640,0.97864176,191.61,191.54,15.08880558]
[1734996111456,10.47391012,191.62,191.54,15.08880558]
[1734996113257,11.45255303,191.61,191.54,4.61489546]
[1734996114163,11.45255303,191.61,191.54,15.08880558]
[1734996114464,10.47391012,191.62,191.54,15.08880558]
[1734996114851,0.97864844,191.65,191.55,10.47391012]
[1734996115035,0.97850823,191.66,191.57,10.47391012]
[1734996115235,10.47391012,191.66,191.59,10.47391012]
[1734996115460,10.47391012,191.66,191.59,10.83140599]
[1734996116641,1.6629,191.7,191.61,10.47391012]
[1734996116850,10.47391012,191.67,191.57,20.0]
[1734996117175,10.47391012,191.68,191.6,10.47391012]
[1734996119154,0.97819396,191.69,191.56,15.13029806]
[1734996119155,10.47391012,191.69,191.62,10.47391012]
[1734996119466,5.7276493,191.74,191.64,34.25079412]
[1734996119651,10.47391012,191.74,191.66,10.47391012]
[1734996119851,10.47391012,191.74,191.67,10.47391012]
[1734996120245,1.5557,191.75,191.64,23.776884]
[1734996120246,1.5557,191.75,191.68,10.83068549]
[1734996120444,10.47391012,191.73,191.66,10.47391012]
[1734996120672,10.47391012,191.74,191.66,10.47391012]
[1734996121344,0.97785663,191.75,191.68,10.47391012]
[1734996121345,10.47391012,191.75,191.68,10.47391012]
[1734996121758,10.47391012,191.74,191.67,136.5]
[1734996122544,10.47391012,191.72,191.67,136.5]
[1734996123736,10.47391012,191.74,191.67,136.5]
[1734996123941,10.47391012,191.73,191.67,136.5]
[1734996124869,10.47391012,191.74,191.67,136.5]
[1734996125248,0.97786172,191.76,191.67,146.97391012]
[1734996125443,10.47391012,191.73,191.67,136.5]
[1734996125771,10.47391012,191.69,191.62,148.60021012]
[1734996126070,0.97819345,191.76,191.64,10.47391012]
[1734996126245,10.47391012,191.72,191.65,146.97391012]
[1734996126451,10.47391012,191.71,191.65,136.5]
[1734996127474,10.47391012,191.7,191.65,136.5]
[1734996127848,11.45209729,191.69,191.65,136.5]
[1734996128049,10.47391012,191.68,191.62,1.6263]
[1734996130971,10.47391012,191.69,191.63,23.776884]
[1734996131171,10.47391012,191.7,191.63,23.776884]
[1734996131344,10.47391012,191.7,191.62,138.1263]
[1734996131542,10.47391012,191.7,191.62,148.60021012]
[1734996131964,10.47391012,191.71,191.63,34.25079412]
[1734996133576,10.47391012,191.7,191.63,34.25079412]
[1734996135366,10.47391012,191.68,191.62,1.6263]
[1734996135752,11.45221582,191.67,191.6,10.47391012]
[1734996135951,10.47391012,191.65,191.58,10.47391012]
[1734996136273,11.45239189,191.64,191.57,1.5851]
[1734996136479,10.47391012,191.63,191.57,1.5851]
[1734996136781,10.47391012,191.61,191.54,11.04769546]
[1734996136976,10.47391012,191.61,191.54,21.52160558]
[1734996137273,10.47391012,191.61,191.54,4.61489546]
[1734996137462,10.47391012,191.61,191.54,15.08880558]
[1734996138366,10.47391012,191.6,191.54,4.61489546]
[1734996138574,10.47391012,191.59,191.54,4.61489546]
[1734996138882,10.47391012,191.58,191.54,4.61489546]
[1734996139262,10.47391012,191.59,191.54,4.61489546]
[1734996139679,11.45269842,191.58,191.54,4.61489546]
[1734996139863,10.47391012,191.57,191.54,4.61489546]
[1734996140269,11.45276158,191.56,191.54,4.61489546]
[1734996140655,11.45276158,191.56,191.48,10.47391012]
[1734996140851,10.47391012,191.55,191.47,8.0179]
[1734996141080,10.47391012,191.53,191.45,10.47391012]
[1734996141276,10.47391012,191.54,191.47,10.47391012]
[1734996141475,10.47391012,191.57,191.5,10.47391012]
[1734996141663,10.47391012,191.57,191.43,175.6788]
[1734996141664,6.273,191.61,191.52,10.47391012]
[1734996141863,0.97873034,191.6,191.49,0.35837222]
[1734996142176,10.47391012,191.58,191.51,10.47391012]
[1734996142368,10.47391012,191.59,191.51,10.47391012]
[1734996143187,10.47391012,191.6,191.53,10.47391012]
[1734996143484,10.47391012,191.61,191.54,10.47391012]
[1734996144278,16.38030662,191.61,191.54,16.38030662]
[1734996144779,16.38030662,191.6,191.53,16.38030662]
[1734996144982,16.38030662,191.61,191.54,16.38030662]
[1734996145177,16.38030662,191.6,191.53,16.38030662]
[1734996145482,16.38030662,191.61,191.54,16.38030662]
[1734996148163,16.38030662,191.64,191.57,23.776884]
[1734996148366,17.35878387,191.63,191.56,152.88030662]
[1734996149171,16.38030662,191.63,191.56,152.88030662]
[1734996150070,16.38030662,191.62,191.55,16.38030662]
[1734996151461,16.38030662,191.63,191.55,16.38030662]
[1734996152162,16.38030662,191.65,191.57,16.38030662]
[1734996152682,16.38030662,191.64,191.58,23.776884]
[1734996152857,16.38030662,191.65,191.57,40.15719062]
[1734996153065,16.38030662,191.66,191.58,16.38030662]
[1734996153494,16.38030662,191.65,191.59,23.776884]
[1734996153667,16.38030662,191.66,191.59,23.776884]
[1734996154174,16.38030662,191.66,191.59,40.15719062]
[1734996155485,16.38030662,191.66,191.59,23.776884]
[1734996155876,16.38030662,191.64,191.57,16.38030662]
[1734996156586,16.38030662,191.64,191.57,23.776884]
[1734996157771,0.97849312,191.66,191.58,16.38030662]
[1734996158103,16.38030662,191.65,191.57,40.15719062]
[1734996161389,16.38030662,191.65,191.58,16.38030662]
[1734996161887,16.38030662,191.64,191.57,40.15719062]
[1734996162090,16.38030662,191.63,191.57,23.776884]
[1734996165496,16.38030662,191.62,191.54,16.38030662]
[1734996165681,16.38030662,191.6,191.52,165.93370662]
[1734996166194,0.97843951,191.62,191.52,149.5534]
[1734996166509,10.48471425,191.62,191.54,146.98471425]
[1734996167108,10.48471425,191.62,191.55,23.776884]
[1734996167487,10.48471425,191.6,191.54,136.5]
[1734996167991,10.48471425,191.61,191.54,146.98471425]
[1734996168700,10.48471425,191.6,191.54,136.5]
[1734996169500,10.48471425,191.62,191.55,23.776884]
[1734996170611,10.48471425,191.61,191.55,23.776884]
[1734996171280,0.9786085,191.64,191.54,136.5]
[1734996171481,10.48471425,191.6,191.53,23.776884]
[1734996171780,10.48471425,191.61,191.54,10.48471425]
[1734996171978,10.48471425,191.6,191.53,34.26159825]
[1734996174421,10.48471425,191.61,191.54,10.48471425]
[1734996175421,10.48471425,191.61,191.53,170.76159825]
[1734996175720,10.48471425,191.58,191.5,144.2282]
[1734996175923,10.48471425,191.57,191.5,7.7282]
[1734996176215,10.48471425,191.56,191.49,146.98471425]
[1734996176524,10.48471425,191.55,191.49,136.5]
[1734996177181,10.48471425,191.55,191.47,136.5]
[1734996177520,11.46370805,191.54,191.47,10.48471425]
[1734996179223,10.48471425,191.54,191.47,10.48471425]
[1734996179425,0.97902405,191.58,191.48,34.26159825]
[1734996179595,10.48471425,191.55,191.48,34.26159825]
[1734996181924,10.48471425,191.55,191.48,23.776884]
[1734996183228,10.48471425,191.54,191.48,23.776884]
[1734996183432,10.48471425,191.54,191.47,146.98471425]
[1734996183632,10.48471425,191.54,191.47,136.5]
[1734996183838,10.48471425,191.54,191.47,146.98471425]
[1734996184745,10.48471425,191.54,191.47,136.5]
[1734996186462,10.48471425,191.54,191.46,10.48471425]
[1734996193556,0.97904228,191.53,191.46,10.48471425]
[1734996193862,10.48471425,191.54,191.46,10.48471425]
[1734996194763,0.9790361,191.53,191.46,10.48471425]
[1734996195763,10.48471425,191.52,191.45,23.54271425]
[1734996196179,10.48471425,191.53,191.46,10.48471425]
[1734996197562,0.97907258,191.55,191.47,47.31839825]
[1734996197763,43.600357,191.6,191.5,10.48471425]
[1734996197764,0.97882897,191.59,191.5,10.48471425]
[1734996198066,12.14621425,191.6,191.53,10.48471425]
[1734996198670,10.48471425,191.59,191.52,10.48471425]
[1734996200153,12.14621425,191.6,191.53,10.48471425]
[1734996200980,12.14621425,191.6,191.54,23.776884]
[1734996201168,10.48471425,191.61,191.54,34.26159825]
[1734996201369,10.48471425,191.63,191.56,10.48471425]
[1734996201556,1.6645,191.64,191.57,10.48471425]
[1734996201557,12.14921425,191.64,191.57,10.48471425]
[1734996201759,12.14921425,191.64,191.56,0.3578806]
[1734996201760,1.6645,191.64,191.58,10.48471425]
[1734996203082,10.48471425,191.63,191.56,24.1347646]
[1734996203377,10.48471425,191.63,191.56,10.84259485]
[1734996203554,10.48471425,191.61,191.55,149.551]
[1734996203755,10.48471425,191.59,191.51,151.68357702]
[1734996203977,10.48471425,191.58,191.51,149.5538]
[1734996204175,10.48471425,191.59,191.52,10.48471425]
[1734996204979,10.48471425,191.57,191.5,10.48471425]
[1734996205275,0.97879162,191.58,191.45,1.5419]
[1734996205276,10.48471425,191.53,191.46,10.48471425]
[1734996205485,10.48471425,191.52,191.45,10.48471425]
[1734996206567,0.97909994,191.51,191.45,10.48471425]
[1734996206969,10.48471425,191.52,191.43,140.39222218]
[1734996207275,10.48471425,191.52,191.46,10.48471425]
[1734996207585,10.48471425,191.52,191.45,10.48471425]
[1734996208683,10.48471425,191.5,191.43,150.87693643]
[1734996209184,10.48471425,191.5,191.43,3.89222218]
[1734996209363,10.48471425,191.48,191.43,3.89222218]
[1734996209784,10.48471425,191.49,191.43,3.89222218]
[1734996209966,10.48471425,191.47,191.43,3.89222218]
[1734996210772,10.48471425,191.45,191.43,3.89222218]
[1734996210954,10.48471425,191.45,191.39,10.48471425]
[1734996211154,10.48471425,191.45,191.38,10.48471425]
[1734996211971,11.46421257,191.45,191.38,10.48471425]
[1734996212484,10.48471425,191.44,191.38,10.48471425]
[1734996215092,10.48471425,191.45,191.39,10.48471425]
[1734996217494,1.6298,191.47,191.4,10.48471425]
[1734996217693,10.48471425,191.45,191.39,10.48471425]
[1734996219826,10.48471425,191.44,191.39,10.48471425]
[1734996220008,2.60914954,191.47,191.36,136.5]
[1734996220009,10.48471425,191.43,191.36,136.5]
[1734996220294,10.48471425,191.42,191.36,10.48471425]
[1734996220475,10.48471425,191.43,191.37,10.48471425]
[1734996222291,11.46426974,191.43,191.37,10.48471425]
[1734996222497,11.46426974,191.43,191.36,30.48471425]
[1734996223076,11.46426974,191.43,191.36,10.48471425]
[1734996223276,10.48471425,191.43,191.36,10.48471425]
[1734996223492,10.48471425,191.42,191.36,10.48471425]
[1734996226002,10.48471425,191.4,191.35,0.265]
[1734996226780,10.48471425,191.39,191.35,0.265]
[1734996227987,10.48471425,191.4,191.35,0.265]
[1734996229801,11.46442397,191.39,191.35,0.265]
[1734996229989,10.48471425,191.36,191.35,0.265]
[1734996232314,20.0,191.38,191.35,0.265]
[1734996232608,10.48471425,191.38,191.35,0.265]
[1734996233311,10.48471425,191.37,191.35,0.265]
[1734996235513,2.60950773,191.4,191.35,0.265]
[1734996235695,10.48471425,191.37,191.35,0.265]
[1734996237396,2.60950773,191.4,191.35,0.265]
[1734996237599,10.48471425,191.37,191.35,0.265]
[1734996239113,10.48471425,191.38,191.35,0.265]
[1734996239300,10.48471425,191.39,191.35,0.265]
[1734996239502,10.48471425,191.38,191.35,0.265]
[1734996239914,10.48471425,191.37,191.35,0.265]
[1734996240726,10.48471425,191.36,191.35,0.265]
[1734996240929,10.48471425,191.37,191.35,0.265]
[1734996241221,10.48471425,191.38,191.35,0.265]
[1734996242216,0.97974775,191.43,191.35,0.265]
[1734996242404,10.48471425,191.38,191.35,0.265]
[1734996242717,34.26159825,191.36,191.35,0.265]